[Event "Blixt-SM 2021"]
[Site "Elite Hotel Marina Plaza, Kungstorget 6, Helsingborg, Sweden"]
[Date "2021.11.14"]
[Round "6.8"]
[White "Wellevit, Tomas"]
[Black "Strom-Engdahl, Alexander"]
[Result "1-0"]
[TimeControl "3 minutes + 2 seconds per move."]
[WhiteFideId "1731963"]
[BlackFideId "1741586"]
[WhiteElo "2113"]
[BlackElo "1783"]

1. e4 {[%clk 00:03:04]} {[%emt 00:08:16]} e5 {[%clk 00:03:02]} {[%emt
00:00:02]} 2. Nf3 {[%clk 00:03:05]} Nf6 {[%clk 00:03:04]} 3. Nc3 {[%clk
00:03:04]} {[%emt 00:00:03]} Nc6 {[%clk 00:03:05]} 4. d3 {[%clk 00:02:55]}
{[%emt 00:00:11]} Bc5 {[%clk 00:03:03]} {[%emt 00:00:04]} 5. Be3 {[%clk
00:02:53]} {[%emt 00:00:03]} d6 {[%clk 00:03:01]} {[%emt 00:00:04]} 6. Qd2
{[%clk 00:02:52]} {[%emt 00:00:03]} O-O {[%clk 00:02:57]} {[%emt 00:00:06]} 7.
O-O-O {[%clk 00:02:52]} {[%emt 00:00:02]} Bxe3 {[%clk 00:02:49]} {[%emt
00:00:10]} 8. Qxe3 {[%clk 00:02:53]} {[%emt 00:00:01]} d5 {[%clk 00:02:47]}
{[%emt 00:00:04]} 9. d4 {[%clk 00:02:07]} {[%emt 00:00:48]} exd4 {[%clk
00:02:29]} {[%emt 00:00:19]} 10. Nxd4 {[%clk 00:02:06]} {[%emt 00:00:04]} Nxd4
{[%clk 00:02:26]} {[%emt 00:00:05]} 11. Qxd4 {[%clk 00:02:00]} {[%emt
00:00:07]} c6 {[%clk 00:01:56]} {[%emt 00:00:32]} 12. e5 {[%clk 00:02:00]}
{[%emt 00:00:02]} Nd7 {[%clk 00:01:56]} {[%emt 00:00:02]} 13. f4 {[%clk
00:01:58]} {[%emt 00:00:04]} Qb6 {[%clk 00:01:54]} {[%emt 00:00:04]} 14. Qd2
{[%clk 00:01:53]} {[%emt 00:00:07]} Nc5 {[%clk 00:01:50]} {[%emt 00:00:06]} 15.
Be2 {[%clk 00:01:47]} {[%emt 00:00:08]} Rd8 {[%clk 00:01:34]} {[%emt 00:00:19]}
16. g4 {[%clk 00:01:47]} {[%emt 00:00:02]} Qb4 {[%clk 00:01:30]} {[%emt
00:00:05]} 17. a3 {[%clk 00:01:42]} {[%emt 00:00:08]} Qa5 {[%clk 00:01:23]}
{[%emt 00:00:08]} 18. f5 {[%clk 00:01:32]} {[%emt 00:00:12]} d4 {[%clk
00:01:12]} {[%emt 00:00:13]} 19. f6 {[%clk 00:01:24]} {[%emt 00:00:10]} Ne6
{[%clk 00:01:07]} {[%emt 00:00:07]} 20. Ne4 {[%clk 00:01:18]} {[%emt 00:00:08]}
Qxd2+ {[%clk 00:01:06]} {[%emt 00:00:03]} 21. Rxd2 {[%clk 00:01:20]} g6 {[%clk
00:01:01]} {[%emt 00:00:07]} 22. h4 {[%clk 00:01:14]} {[%emt 00:00:07]} h6
{[%clk 00:00:52]} {[%emt 00:00:11]} 23. h5 {[%clk 00:01:11]} {[%emt 00:00:05]}
g5 {[%clk 00:00:53]} {[%emt 00:00:01]} 24. Rhd1 {[%clk 00:01:03]} {[%emt
00:00:10]} Nf4 {[%clk 00:00:53]} {[%emt 00:00:02]} 25. Bf3 {[%clk 00:00:59]}
{[%emt 00:00:07]} Ne6 {[%clk 00:00:49]} {[%emt 00:00:07]} 26. Nd6 {[%clk
00:00:56]} {[%emt 00:00:05]} c5 {[%clk 00:00:46]} {[%emt 00:00:04]} 27. Bxb7
{[%clk 00:00:50]} {[%emt 00:00:08]} Bxb7 {[%clk 00:00:47]} 28. Nxb7 {[%clk
00:00:51]} Rd5 {[%clk 00:00:48]} 29. Re1 {[%clk 00:00:45]} {[%emt 00:00:08]}
Rb8 {[%clk 00:00:26]} {[%emt 00:00:24]} 30. Nd6 {[%clk 00:00:45]} {[%emt
00:00:03]} Nf4 {[%clk 00:00:19]} {[%emt 00:00:09]} 31. Nf5 {[%clk 00:00:34]}
{[%emt 00:00:13]} Kh7 {[%clk 00:00:16]} {[%emt 00:00:04]} 32. Nd6 {[%clk
00:00:34]} {[%emt 00:00:02]} Kg8 {[%clk 00:00:16]} {[%emt 00:00:01]} 33. Re4
{[%clk 00:00:28]} {[%emt 00:00:09]} Rd8 {[%clk 00:00:14]} {[%emt 00:00:05]} 34.
Nf5 {[%clk 00:00:28]} {[%emt 00:00:01]} Kh7 {[%clk 00:00:13]} {[%emt 00:00:03]}
35. Ne7 {[%clk 00:00:29]} R5d7 {[%clk 00:00:12]} {[%emt 00:00:04]} 36. Nc6
{[%clk 00:00:29]} {[%emt 00:00:02]} Rc8 {[%clk 00:00:13]} 37. Ne7 {[%clk
00:00:27]} {[%emt 00:00:03]} Rb8 {[%clk 00:00:14]} 38. Nf5 {[%clk 00:00:27]}
{[%emt 00:00:03]} Rdb7 {[%clk 00:00:14]} {[%emt 00:00:01]} 39. b3 {[%clk
00:00:27]} {[%emt 00:00:01]} a5 {[%clk 00:00:16]} {[%emt 00:00:01]} 40. a4
{[%clk 00:00:28]} c4 {[%clk 00:00:16]} {[%emt 00:00:02]} 41. Nxd4 {[%clk
00:00:27]} {[%emt 00:00:03]} cxb3 {[%clk 00:00:17]} {[%emt 00:00:02]} 42. Nxb3
{[%clk 00:00:28]} Rc7 {[%clk 00:00:18]} {[%emt 00:00:01]} 43. Kb2 {[%clk
00:00:29]} {[%emt 00:00:01]} Ne6 {[%clk 00:00:16]} {[%emt 00:00:04]} 44. Ka3
{[%clk 00:00:27]} {[%emt 00:00:04]} Rcb7 {[%clk 00:00:12]} {[%emt 00:00:06]} 45.
Rd5 {[%clk 00:00:25]} {[%emt 00:00:03]} Rc7 {[%clk 00:00:11]} {[%emt 00:00:04]}
46. Re2 {[%clk 00:00:25]} {[%emt 00:00:02]} Rbc8 {[%clk 00:00:08]} {[%emt
00:00:04]} 47. Kb2 {[%clk 00:00:25]} {[%emt 00:00:02]} Nc5 {[%clk 00:00:07]}
{[%emt 00:00:03]} 48. Rxc5 {[%clk 00:00:25]} {[%emt 00:00:02]} Rxc5 {[%clk
00:00:08]} {[%emt 00:00:02]} 49. Nxc5 {[%clk 00:00:26]} Rxc5 {[%clk 00:00:09]}
50. c3 {[%clk 00:00:26]} {[%emt 00:00:02]} Kg8 {[%clk 00:00:08]} {[%emt
00:00:03]} 51. Kb3 {[%clk 00:00:28]} Kf8 {[%clk 00:00:09]} {[%emt 00:00:01]} 52.
Re4 {[%clk 00:00:28]} {[%emt 00:00:02]} Ke8 {[%clk 00:00:09]} {[%emt 00:00:02]}
53. e6 {[%clk 00:00:27]} {[%emt 00:00:03]} fxe6 {[%clk 00:00:08]} {[%emt
00:00:03]} 54. Rxe6+ {[%clk 00:00:28]} Kf7 {[%clk 00:00:09]} 55. Rb6 {[%clk
00:00:27]} {[%emt 00:00:03]} Re5 {[%clk 00:00:07]} {[%emt 00:00:04]} 56. Rb5
{[%clk 00:00:25]} {[%emt 00:00:04]} Re1 {[%clk 00:00:07]} {[%emt 00:00:01]} 57.
Rxa5 {[%clk 00:00:26]} {[%emt 00:00:02]} Kxf6 {[%clk 00:00:08]} 58. Ra6+ {[%clk
00:00:27]} Ke5 {[%clk 00:00:07]} {[%emt 00:00:02]} 59. Rxh6 {[%clk 00:00:27]}
{[%emt 00:00:02]} Kf4 {[%clk 00:00:09]} 60. Rg6 {[%clk 00:00:28]} Kxg4 {[%clk
00:00:10]} 61. h6 {[%clk 00:00:29]} Rh1 {[%clk 00:00:09]} {[%emt 00:00:03]} 62.
a5 {[%clk 00:00:30]} {[%emt 00:00:01]} Kf5 {[%clk 00:00:10]} 63. Rb6 {[%clk
00:00:30]} {[%emt 00:00:02]} g4 {[%clk 00:00:10]} {[%emt 00:00:02]} 64. Kc4
{[%clk 00:00:25]} {[%emt 00:00:08]} g3 {[%clk 00:00:10]} {[%emt 00:00:01]} 65.
Rb2 {[%clk 00:00:19]} {[%emt 00:00:08]} Rxh6 {[%clk 00:00:11]} 66. Kb5 {[%clk
00:00:19]} {[%emt 00:00:02]} Rh2 {[%clk 00:00:10]} {[%emt 00:00:03]} 67. Rb1
{[%clk 00:00:19]} {[%emt 00:00:03]} Rc2 {[%clk 00:00:06]} {[%emt 00:00:06]} 68.
c4 {[%clk 00:00:19]} {[%emt 00:00:01]} g2 {[%clk 00:00:07]} 69. Rg1 {[%clk
00:00:20]} {[%emt 00:00:02]} Ke5 {[%clk 00:00:08]} {[%emt 00:00:01]} 70. a6
{[%clk 00:00:20]} {[%emt 00:00:01]} Kd6 {[%clk 00:00:08]} {[%emt 00:00:02]} 71.
Rd1+ {[%clk 00:00:16]} {[%emt 00:00:06]} Kc7 {[%clk 00:00:08]} {[%emt
00:00:02]} 72. c5 {[%clk 00:00:12]} {[%emt 00:00:06]} Rb2+ {[%clk 00:00:09]}
{[%emt 00:00:01]} 73. Ka5 {[%clk 00:00:13]} Kc6 {[%clk 00:00:09]} {[%emt
00:00:02]} 74. Ra1 {[%clk 00:00:11]} {[%emt 00:00:05]} Rb8 {[%clk 00:00:03]}
{[%emt 00:00:08]} 75. a7 {[%clk 00:00:11]} {[%emt 00:00:01]} Ra8 {[%clk
00:00:04]} 76. Ka6 {[%clk 00:00:12]} Kxc5 {[%clk 00:00:04]} {[%emt 00:00:02]}
77. Kb7 {[%clk 00:00:14]} Rg8 {[%clk 00:00:04]} {[%emt 00:00:02]} 78. a8=Q
{[%clk 00:00:14]} {[%emt 00:00:01]} g1=Q {[%clk 00:00:04]} {[%emt 00:00:02]} 79.
Rxg1 {[%clk 00:00:15]} {[%emt 00:00:01]} Rxg1 {[%clk 00:00:05]} {[%emt
00:00:01]} 80. Qc8+ {[%clk 00:00:15]} {[%emt 00:00:02]} Kd5 {[%clk 00:00:06]}
{[%emt 00:00:01]} 81. Qc6+ {[%clk 00:00:15]} {[%emt 00:00:01]} Ke5 {[%clk
00:00:04]} {[%emt 00:00:05]} 82. Qc5+ {[%clk 00:00:16]} 1-0

[Event "Blixt-SM 2021"]
[Site "Elite Hotel Marina Plaza, Kungstorget 6, Helsingborg, Sweden"]
[Date "2021.11.14"]
[Round "8.6"]
[White "Kucuksari, Kaan"]
[Black "Rasti, Arvin"]
[Result "1-0"]
[TimeControl "3 minutes + 2 seconds per move."]
[WhiteTitle "FM"]
[WhiteFideId "6380166"]
[BlackFideId "1741160"]
[WhiteElo "2301"]
[BlackElo "2054"]

1. d4 {[%clk 00:03:03]} {[%emt 00:03:15]} Nf6 {[%clk 00:03:03]} {[%emt
00:00:01]} 2. c4 {[%clk 00:03:04]} {[%emt 00:00:01]} c5 {[%clk 00:03:02]}
{[%emt 00:00:03]} 3. d5 {[%clk 00:03:05]} g6 {[%clk 00:02:59]} {[%emt
00:00:05]} 4. Nc3 {[%clk 00:03:06]} {[%emt 00:00:01]} Bg7 {[%clk 00:03:00]}
{[%emt 00:00:01]} 5. e4 {[%clk 00:03:04]} {[%emt 00:00:04]} d6 {[%clk
00:03:01]} {[%emt 00:00:01]} 6. Nf3 {[%clk 00:02:56]} {[%emt 00:00:10]} O-O
{[%clk 00:03:01]} {[%emt 00:00:02]} 7. Be2 {[%clk 00:02:48]} {[%emt 00:00:10]}
e6 {[%clk 00:02:57]} {[%emt 00:00:06]} 8. O-O {[%clk 00:02:47]} {[%emt
00:00:03]} exd5 {[%clk 00:02:58]} {[%emt 00:00:01]} 9. exd5 {[%clk 00:02:48]}
{[%emt 00:00:01]} Bg4 {[%clk 00:02:52]} {[%emt 00:00:08]} 10. Nd2 {[%clk
00:02:39]} {[%emt 00:00:11]} Bxe2 11. Qxe2 {[%clk 00:02:40]} Re8 {[%clk
00:02:52]} {[%emt 00:00:01]} 12. Qf3 {[%clk 00:02:41]} {[%emt 00:00:01]} Nbd7
{[%clk 00:02:49]} {[%emt 00:00:05]} 13. Nde4 {[%clk 00:02:23]} {[%emt
00:00:19]} Ne5 {[%clk 00:02:28]} {[%emt 00:00:24]} 14. Qe2 {[%clk 00:02:22]}
{[%emt 00:00:03]} Nxe4 {[%clk 00:02:25]} {[%emt 00:00:05]} 15. Nxe4 {[%clk
00:02:13]} {[%emt 00:00:11]} h6 {[%clk 00:02:22]} {[%emt 00:00:04]} 16. f4
{[%clk 00:01:38]} {[%emt 00:00:37]} Ng4 {[%clk 00:02:07]} {[%emt 00:00:17]} 17.
f5 {[%clk 00:01:14]} {[%emt 00:00:26]} Nxh2 {[%clk 00:01:42]} {[%emt 00:00:27]}
18. Rf4 {[%clk 00:00:51]} {[%emt 00:00:25]} gxf5 {[%clk 00:01:01]} {[%emt
00:00:43]} 19. Kxh2 {[%clk 00:00:37]} {[%emt 00:00:17]} fxe4 {[%clk 00:00:54]}
{[%emt 00:00:09]} 20. Rg4 {[%clk 00:00:31]} {[%emt 00:00:08]} Qf6 {[%clk
00:00:50]} {[%emt 00:00:05]} 21. Be3 {[%clk 00:00:27]} {[%emt 00:00:05]} Re5
{[%clk 00:00:49]} {[%emt 00:00:04]} 22. Rf1 {[%clk 00:00:23]} {[%emt 00:00:05]}
Rh5+ {[%clk 00:00:49]} {[%emt 00:00:03]} 23. Kg1 {[%clk 00:00:24]} {[%emt
00:00:01]} Qe5 {[%clk 00:00:43]} {[%emt 00:00:08]} 24. Bf4 {[%clk 00:00:24]}
Qd4+ {[%clk 00:00:38]} {[%emt 00:00:08]} 25. Be3 {[%clk 00:00:26]} Qe5 {[%clk
00:00:39]} 26. Bf4 {[%clk 00:00:27]} Qe7 {[%clk 00:00:39]} {[%emt 00:00:03]} 27.
Rxg7+ {[%clk 00:00:24]} {[%emt 00:00:05]} Kxg7 {[%clk 00:00:38]} {[%emt
00:00:03]} 28. Qxh5 {[%clk 00:00:23]} {[%emt 00:00:03]} Rh8 {[%clk 00:00:34]}
{[%emt 00:00:06]} 29. Qg4+ {[%clk 00:00:17]} {[%emt 00:00:08]} Kf8 {[%clk
00:00:33]} {[%emt 00:00:03]} 30. Qg3 {[%clk 00:00:11]} {[%emt 00:00:08]} Ke8
{[%clk 00:00:23]} {[%emt 00:00:13]} 31. Bxd6 {[%clk 00:00:09]} {[%emt
00:00:04]} Qd7 {[%clk 00:00:18]} {[%emt 00:00:06]} 32. Qe5+ {[%clk 00:00:09]}
{[%emt 00:00:01]} Kd8 {[%clk 00:00:19]} 33. Qxh8+ {[%clk 00:00:10]} {[%emt
00:00:02]} 1-0

[Event "Blixt-SM 2021"]
[Site "Elite Hotel Marina Plaza, Kungstorget 6, Helsingborg, Sweden"]
[Date "2021.11.14"]
[Round "10.5"]
[White "Wellevit, Tomas"]
[Black "Nord, Alexander"]
[Result "1-0"]
[TimeControl "3 minutes + 2 seconds per move."]
[WhiteFideId "1731963"]
[BlackFideId "1738135"]
[WhiteElo "2113"]
[BlackElo "1909"]

1. e4 {[%clk 00:03:04]} {[%emt 00:05:15]} c5 {[%clk 00:03:02]} {[%emt
00:00:02]} 2. Nf3 {[%clk 00:03:04]} {[%emt 00:00:02]} d6 {[%clk 00:03:03]}
{[%emt 00:00:01]} 3. d4 {[%clk 00:03:05]} cxd4 {[%clk 00:03:04]} {[%emt
00:00:02]} 4. c3 {[%clk 00:03:07]} dxc3 {[%clk 00:03:02]} {[%emt 00:00:04]} 5.
Nxc3 {[%clk 00:03:08]} {[%emt 00:00:01]} Nc6 {[%clk 00:03:01]} {[%emt
00:00:02]} 6. Bc4 {[%clk 00:03:09]} {[%emt 00:00:01]} e6 {[%clk 00:03:02]} 7.
O-O {[%clk 00:03:09]} {[%emt 00:00:02]} Nf6 {[%clk 00:03:02]} {[%emt 00:00:02]}
8. Bg5 {[%clk 00:03:08]} {[%emt 00:00:03]} Be7 {[%clk 00:03:02]} {[%emt
00:00:02]} 9. Qe2 {[%clk 00:03:09]} O-O {[%clk 00:03:01]} {[%emt 00:00:03]} 10.
Rfd1 {[%clk 00:03:10]} e5 {[%clk 00:03:01]} {[%emt 00:00:03]} 11. h3 {[%clk
00:03:11]} Be6 {[%clk 00:03:01]} {[%emt 00:00:03]} 12. Bb5 {[%clk 00:03:05]}
{[%emt 00:00:08]} a6 {[%clk 00:02:35]} {[%emt 00:00:28]} 13. Bxc6 {[%clk
00:03:05]} {[%emt 00:00:02]} bxc6 {[%clk 00:02:34]} {[%emt 00:00:02]} 14. Nxe5
{[%clk 00:03:05]} {[%emt 00:00:02]} Qb6 {[%clk 00:02:23]} {[%emt 00:00:13]} 15.
Nc4 {[%clk 00:02:34]} {[%emt 00:00:34]} Qb4 {[%clk 00:01:34]} {[%emt 00:00:50]}
16. Ne3 {[%clk 00:02:29]} {[%emt 00:00:07]} a5 {[%clk 00:01:19]} {[%emt
00:00:18]} 17. a3 {[%clk 00:02:18]} {[%emt 00:00:13]} Qc5 {[%clk 00:01:07]}
{[%emt 00:00:13]} 18. Bh4 {[%clk 00:02:07]} {[%emt 00:00:13]} Rfe8 {[%clk
00:00:54]} {[%emt 00:00:16]} 19. f4 {[%clk 00:02:03]} {[%emt 00:00:06]} Rab8
{[%clk 00:00:41]} {[%emt 00:00:14]} 20. Bf2 {[%clk 00:01:57]} {[%emt 00:00:08]}
Qh5 {[%clk 00:00:24]} {[%emt 00:00:19]} 21. Qxh5 {[%clk 00:01:35]} {[%emt
00:00:24]} Nxh5 {[%clk 00:00:25]} 22. f5 {[%clk 00:01:33]} {[%emt 00:00:04]}
Bc8 {[%clk 00:00:25]} {[%emt 00:00:03]} 23. Nc4 {[%clk 00:01:24]} {[%emt
00:00:11]} Ba6 {[%clk 00:00:19]} {[%emt 00:00:08]} 24. Nxd6 {[%clk 00:01:21]}
{[%emt 00:00:05]} Red8 {[%clk 00:00:12]} {[%emt 00:00:08]} 25. Bc5 {[%clk
00:01:06]} {[%emt 00:00:18]} Rxb2 {[%clk 00:00:12]} {[%emt 00:00:03]} 26. Ra2
{[%clk 00:00:58]} {[%emt 00:00:09]} Rxa2 {[%clk 00:00:11]} {[%emt 00:00:04]} 27.
Nxa2 {[%clk 00:00:59]} Bf6 {[%clk 00:00:10]} {[%emt 00:00:03]} 28. Rd2 {[%clk
00:00:44]} {[%emt 00:00:17]} Bg5 {[%clk 00:00:08]} {[%emt 00:00:05]} 29. Rf2
{[%clk 00:00:36]} {[%emt 00:00:10]} Be7 {[%clk 00:00:07]} {[%emt 00:00:03]} 30.
e5 {[%clk 00:00:37]} {[%emt 00:00:01]} f6 {[%clk 00:00:07]} {[%emt 00:00:02]}
31. Ne4 {[%clk 00:00:25]} {[%emt 00:00:13]} Bxc5 {[%clk 00:00:07]} {[%emt
00:00:03]} 32. Nxc5 {[%clk 00:00:27]} {[%emt 00:00:01]} Bc4 {[%clk 00:00:07]}
33. e6 {[%clk 00:00:26]} {[%emt 00:00:02]} g6 {[%clk 00:00:05]} {[%emt
00:00:04]} 34. g4 {[%clk 00:00:22]} {[%emt 00:00:07]} Ng7 {[%clk 00:00:06]}
{[%emt 00:00:01]} 35. Nc3 {[%clk 00:00:21]} {[%emt 00:00:03]} gxf5 {[%clk
00:00:06]} {[%emt 00:00:02]} 36. gxf5 {[%clk 00:00:22]} Re8 {[%clk 00:00:05]}
{[%emt 00:00:02]} 37. N3e4 {[%clk 00:00:23]} {[%emt 00:00:01]} Bd5 {[%emt
00:00:05]} 38. Nxf6+ {[%clk 00:00:23]} {[%emt 00:00:02]} Kf8 {[%clk 00:00:04]}
39. Nxe8 {[%clk 00:00:24]} {[%emt 00:00:01]} 1-0

[Event "Blixt-SM 2021"]
[Site "Elite Hotel Marina Plaza, Kungstorget 6, Helsingborg, Sweden"]
[Date "2021.11.14"]
[Round "12.3"]
[White "Rajcevski, Dejan"]
[Black "Jepson, Christian"]
[Result "0-1"]
[TimeControl "3 minutes + 2 seconds per move."]
[BlackTitle "IM"]
[WhiteFideId "1759027"]
[BlackFideId "1701185"]
[WhiteElo "1977"]
[BlackElo "2412"]

1. d4 {[%clk 00:03:02]} {[%emt 00:00:02]} Nf6 {[%clk 00:03:03]} {[%emt
00:00:01]} 2. Nf3 {[%clk 00:03:03]} g6 {[%clk 00:03:04]} {[%emt 00:00:01]} 3.
Bf4 {[%clk 00:03:03]} {[%emt 00:00:02]} d6 {[%clk 00:03:04]} {[%emt 00:00:02]}
4. e3 {[%clk 00:03:04]} {[%emt 00:00:01]} Bg7 {[%clk 00:03:03]} {[%emt
00:00:03]} 5. Be2 {[%clk 00:03:04]} {[%emt 00:00:01]} Nc6 {[%clk 00:03:04]} 6.
O-O {[%clk 00:03:04]} {[%emt 00:00:02]} O-O {[%clk 00:03:05]} {[%emt 00:00:02]}
7. h3 {[%clk 00:03:04]} {[%emt 00:00:02]} Qe8 {[%clk 00:03:02]} {[%emt
00:00:06]} 8. c3 {[%clk 00:02:56]} {[%emt 00:00:09]} e5 {[%clk 00:03:02]}
{[%emt 00:00:02]} 9. Bh2 {[%clk 00:02:57]} Qe7 {[%clk 00:03:02]} {[%emt
00:00:02]} 10. a4 {[%clk 00:02:50]} {[%emt 00:00:09]} a6 {[%clk 00:02:57]}
{[%emt 00:00:07]} 11. b4 {[%clk 00:02:48]} {[%emt 00:00:04]} Bd7 {[%clk
00:02:39]} {[%emt 00:00:20]} 12. Qc2 {[%clk 00:02:49]} {[%emt 00:00:02]} Rfe8
{[%clk 00:02:28]} {[%emt 00:00:12]} 13. Re1 {[%clk 00:02:49]} {[%emt 00:00:02]}
h5 {[%clk 00:02:18]} {[%emt 00:00:13]} 14. Na3 {[%clk 00:02:41]} {[%emt
00:00:10]} Bf5 {[%clk 00:01:58]} {[%emt 00:00:21]} 15. Qb2 {[%clk 00:02:35]}
{[%emt 00:00:08]} e4 {[%clk 00:01:55]} {[%emt 00:00:05]} 16. Nd2 {[%clk
00:02:34]} {[%emt 00:00:03]} g5 {[%clk 00:01:55]} {[%emt 00:00:02]} 17. Nf1
{[%clk 00:02:23]} {[%emt 00:00:13]} b6 {[%clk 00:01:56]} {[%emt 00:00:02]} 18.
Nc4 {[%clk 00:02:17]} {[%emt 00:00:07]} Bg6 {[%clk 00:01:46]} {[%emt 00:00:11]}
19. a5 {[%clk 00:02:16]} {[%emt 00:00:03]} b5 {[%clk 00:01:47]} {[%emt
00:00:02]} 20. Ncd2 {[%clk 00:02:16]} {[%emt 00:00:01]} Rab8 {[%clk 00:01:31]}
{[%emt 00:00:18]} 21. Rad1 {[%clk 00:02:09]} {[%emt 00:00:09]} Qd7 {[%clk
00:01:20]} {[%emt 00:00:13]} 22. Nb3 {[%clk 00:02:09]} {[%emt 00:00:02]} h4
{[%clk 00:01:18]} {[%emt 00:00:04]} 23. Qd2 {[%clk 00:01:43]} {[%emt 00:00:28]}
Bh6 {[%clk 00:01:18]} {[%emt 00:00:03]} 24. Qb2 {[%clk 00:01:41]} {[%emt
00:00:03]} g4 {[%clk 00:01:17]} {[%emt 00:00:03]} 25. hxg4 {[%clk 00:01:36]}
{[%emt 00:00:07]} Nxg4 {[%clk 00:01:18]} {[%emt 00:00:01]} 26. Bf4 {[%clk
00:01:26]} {[%emt 00:00:12]} Bxf4 {[%clk 00:01:18]} {[%emt 00:00:02]} 27. exf4
{[%clk 00:01:27]} Kg7 {[%clk 00:00:58]} {[%emt 00:00:23]} 28. Ne3 {[%clk
00:01:28]} {[%emt 00:00:01]} Nxe3 {[%clk 00:00:57]} {[%emt 00:00:02]} 29. fxe3
{[%clk 00:01:29]} Bf5 {[%clk 00:00:50]} {[%emt 00:00:09]} 30. d5 {[%clk
00:01:29]} {[%emt 00:00:02]} Ne7 {[%clk 00:00:48]} {[%emt 00:00:03]} 31. Nd4
{[%clk 00:01:11]} {[%emt 00:00:20]} f6 {[%clk 00:00:40]} {[%emt 00:00:11]} 32.
Bh5 {[%clk 00:01:00]} {[%emt 00:00:13]} Rh8 {[%clk 00:00:40]} {[%emt 00:00:02]}
33. Qe2 {[%clk 00:01:01]} Rbg8 {[%clk 00:00:37]} {[%emt 00:00:05]} 34. Nxf5+
{[%clk 00:00:59]} {[%emt 00:00:04]} Qxf5 {[%clk 00:00:33]} {[%emt 00:00:07]} 35.
Bg4 {[%clk 00:00:30]} {[%emt 00:00:31]} Qg6 {[%clk 00:00:31]} {[%emt 00:00:04]}
36. Bh3 {[%clk 00:00:29]} {[%emt 00:00:02]} f5 {[%clk 00:00:25]} {[%emt
00:00:08]} 37. c4 {[%clk 00:00:30]} Qg3 {[%clk 00:00:10]} {[%emt 00:00:17]} 38.
cxb5 {[%clk 00:00:18]} {[%emt 00:00:14]} axb5 {[%clk 00:00:12]} 39. Kh1 {[%clk
00:00:16]} {[%emt 00:00:03]} Rb8 {[%clk 00:00:06]} {[%emt 00:00:07]} 40. Rc1
{[%clk 00:00:16]} {[%emt 00:00:02]} Rhc8 {[%clk 00:00:07]} {[%emt 00:00:02]} 41.
Qh5 {[%clk 00:00:08]} {[%emt 00:00:10]} Qg6 {[%clk 00:00:06]} {[%emt 00:00:03]}
42. Qxg6+ {[%clk 00:00:09]} {[%emt 00:00:01]} Kxg6 {[%clk 00:00:06]} {[%emt
00:00:01]} 43. Ra1 {[%clk 00:00:10]} {[%emt 00:00:02]} Nxd5 {[%clk 00:00:07]}
{[%emt 00:00:02]} 44. Reb1 {[%clk 00:00:06]} {[%emt 00:00:05]} Nxe3 {[%clk
00:00:06]} {[%emt 00:00:03]} 45. Kg1 {[%clk 00:00:04]} {[%emt 00:00:03]} Kf6
{[%clk 00:00:07]} {[%emt 00:00:02]} 46. Kf2 {[%clk 00:00:05]} Nc4 {[%clk
00:00:06]} {[%emt 00:00:03]} 47. g4 {[%clk 00:00:05]} {[%emt 00:00:01]} hxg3+
{[%clk 00:00:07]} {[%emt 00:00:01]} 48. Kxg3 {[%clk 00:00:07]} Rh8 {[%clk
00:00:07]} {[%emt 00:00:02]} 49. Kf2 {[%clk 00:00:08]} Rxh3 {[%clk 00:00:08]}
{[%emt 00:00:01]} 0-1